[Event "Gibraltar Amateurs A 2020"]
[Site "Caleta"]
[Date "2020.01.23"]
[Round "4.14"]
[White "Longdin, Michael"]
[Black "Nash, Damian"]
[Result "0-1"]
[ECO "D00"]
[WhiteElo "1680"]
[BlackElo "1890"]
[Annotator "NA"]
[PlyCount "110"]
[EventDate "2020.01.20"]
[EventType "swiss"]
[EventCountry "GGB"]
[SourceTitle "playchess.com"]
[Source "ChessBase"]
[SourceQuality "1"]
[TimeControl "6600+10"]

{[%evp 8,108,25,8,18,32767,32767,32767,32767,32767,5,-25,32767,-35,32767,32767,32767,32767,32767,32767,32767,32767,31,-1,32767,32767,0,32767,44,33,32767,60,78,64,102,92,145,77,87,95,96,32767,32767,32767,54,32767,32767,32767,64,34,102,32767,32767,32767,32767,6,32767,32767,32767,4,32767,32767,0,9,18,-133,-114,-131,-115,-157,-150,-121,-107,-208,-231,-296,-389,-322,-349,32767,-377,-577,-757,-47,-861,-1228,-792,-2440,32767,32767,32767,32767,32767,32767,32767,-29990,32767,32767,32767,32767,-12848,-12848,-29992]} 1. d4 {[%emt 0:00:00]} d5 {[%emt 0:00:00]} 2. Bf4 {[%emt 0:00:00]} Bf5 {[%emt 0:00:02]} 3. e3 {[%emt 0:00:24]} Nc6 {[%emt 0:00:40]} 4. c3 {[%emt 0:00:21]} (4. Nf3 e6 5. a3 Bd6 6. Bg3 Nf6 7. Nbd2 Ne4 8. Bb5 O-O 9. Nxe4 Bxe4 10. O-O Ne7 11. Bd3 Bxd3 12. Qxd3 Nf5 {½-½ (45) Semcesen,D (2450)-Tikkanen,H (2535) Uppsala 2016}) 4... Qd7 {[%emt 0:00:22]} 5. Nf3 {[%emt 0:01:01]} f6 {[%emt 0:00:08]} 6. Nbd2 {[%emt 0:02:52] D00: 1 d4 d5: Unusual lines} g5 {[%emt 0:08:56]} 7. Bg3 {[%emt 0:00:55]} h5 {[%emt 0:00:38]} 8. h3 $146 {[%emt 0:00:25]} ({Predecessor:} 8. h4 g4 9. Ng1 e5 10. Bb5 Bd6 11. e4 dxe4 12. d5 {1-0 (39) Radlovacki,J (2379)-Kolognat,P (2305) Sombor 2009}) 8... e6 {[%emt 0:03:24]} 9. Nb3 {[%emt 0:01:36]} O-O-O {[%emt 0:05:24]} 10. Bd3 {[%emt 0:03:18]} Nh6 {[%emt 0:03:42]} 11. a3 {[%emt 0:18:28]} Bxd3 {[%emt 0:06:09]} 12. Qxd3 {[%emt 0:00:05]} Nf5 {[%emt 0:00:43]} 13. Bh2 {[%emt 0:06:49]} g4 {[%emt 0:06:08]} 14. Nfd2 {[%emt 0:09:11]} Qg7 {[%emt 0:05:00]} 15. O-O-O {[%emt 0:11:53]} g3 {[%emt 0:04:21]} 16. fxg3 {[%emt 0:04:33]} Nxg3 {[%emt 0:08:39]} 17. Rhe1 {[%emt 0:01:06]} h4 {[%emt 0:03:57]} 18. e4 {[%emt 0:02:14]} Qg6 {[%emt 0:01:49]} 19. Bxg3 {[%emt 0:03:35]} hxg3 {[%emt 0:01:55]} 20. Nf1 {[%emt 0:01:12]} Rg8 {[%emt 0:01:10]} 21. exd5 {[%emt 0:01:25]} Qg5+ {[%emt 0:04:38]} 22. Kb1 {[%emt 0:00:46]} Qxd5 {[%emt 0:00:43]} 23. Qc2 {[%emt 0:00:56]} Qf5 {[%emt 0:09:26]} 24. Qxf5 {[%emt 0:02:32]} exf5 {[%emt 0:00:01]} 25. Nfd2 {[%emt 0:04:51]} b6 {[%emt 0:03:21]} 26. Nf3 {[%emt 0:00:40]} Bd6 {[%emt 0:07:05]} 27. Nbd2 {[%emt 0:03:49]} Ne7 {[%emt 0:01:59]} 28. Nc4 {[%emt 0:03:17]} Nd5 {[%emt 0:02:04]} (28... Rg7 $14) 29. Nxd6+ {[%emt 0:05:50]} Rxd6 {[%emt 0:00:01]} 30. c4 {[%emt 0:03:59]} Nf4 {[%emt 0:01:17]} 31. Rd2 {[%emt 0:00:29]} (31. Nh4 $16) 31... Re6 {[%emt 0:04:05]} 32. Rxe6 {[%emt 0:00:48]} Nxe6 {[%emt 0:00:01]} 33. Kc2 {[%emt 0:02:30]} Kd7 {[%emt 0:01:42]} 34. Kd1 {[%emt 0:00:28]} Ng5 {[%emt 0:02:11]} 35. Nxg5 {[%emt 0:00:55]} fxg5 {[%emt 0:00:02]} 36. Re2 {[%emt 0:02:08]} (36. Ke2 $11 {remains equal.}) 36... g4 {[%emt 0:00:47]} 37. hxg4 {[%emt 0:04:33]} Rxg4 {[%emt 0:00:03]} 38. Rd2 {[%emt 0:00:30]} Re4 {[%emt 0:02:20]} 39. Rd3 {[%emt 0:01:01]} f4 {[%emt 0:00:13]} 40. b3 {[%emt 0:00:17]} a5 {[%emt 0:01:07]} 41. d5 $2 {[%emt 0:00:09]} (41. Kd2 $17) 41... Kd6 {[%emt 0:00:09]} 42. Kd2 {[%emt 0:00:24]} (42. a4 {was necessary.}) 42... Kc5 {[%emt 0:01:01]} 43. Kc3 {[%emt 0:00:19]} Re2 {[%emt 0:01:11]} 44. b4+ $2 {[%emt 0:01:03]} (44. d6 {was the only defense.} cxd6 45. Rd5+ Kc6 46. Rd4) 44... axb4+ {[%emt 0:00:14]} 45. axb4+ {[%emt 0:00:02]} Kd6 {[%emt 0:00:12]} 46. Kd4 {[%emt 0:00:45]} Rxg2 {[%emt 0:01:20]} 47. c5+ {[%emt 0:00:14]} bxc5+ {[%emt 0:00:25]} 48. bxc5+ {[%emt 0:00:02]} Kd7 {[%emt 0:00:01]} 49. Rf3 {[%emt 0:00:59]} Rd2+ {[%emt 0:01:58]} 50. Ke5 {[%emt 0:00:31]} g2 {[%emt 0:00:16]} 51. c6+ {[%emt 0:00:40]} Ke7 {[%emt 0:00:26]} 52. Rh3 {[%emt 0:00:56]} Re2+ {[%emt 0:00:23]} 53. Kf5 {[%emt 0:00:12]} g1=Q {[%emt 0:00:15]} 54. Rh7+ {[%emt 0:00:11]} Kd6 {[%emt 0:00:40]} 55. Rd7+ {[%emt 0:00:09]} Kc5 {[%emt 0:00:19]} 0-1

[Event "Gibraltar Amateurs A 2020"]
[Site "Caleta"]
[Date "2020.01.23"]
[Round "4.15"]
[White "Marani, Luca"]
[Black "Krause, Helmut"]
[Result "1-0"]
[ECO "B28"]
[WhiteElo "1796"]
[BlackElo "1660"]
[Annotator "NA"]
[PlyCount "47"]
[EventDate "2020.01.20"]
[EventType "swiss"]
[EventCountry "GGB"]
[SourceTitle "playchess.com"]
[Source "ChessBase"]
[SourceQuality "1"]
[TimeControl "6600+10"]

1. e4 {[%emt 0:14:05]} c5 {[%emt 0:00:01]} 2. Nf3 {[%emt 0:00:29]} a6 {[%emt 0:00:14]} 3. d4 {[%emt 0:00:39]} cxd4 {[%emt 0:00:17]} 4. Nxd4 {[%emt 0:00:35]} Nf6 {[%emt 0:00:09]} 5. Nc3 {[%emt 0:00:13]} e5 {[%emt 0:00:10]} 6. Nf5 {[%emt 0:09:49]} d5 {[%emt 0:02:18]} 7. Nxd5 {[%emt 0:16:02]} Nxd5 {[%emt 0:01:31]} 8. Bc4 {[%emt 0:03:32]} Bxf5 {[%emt 0:11:54]} 9. exf5 {[%emt 0:05:54]} Nf6 {[%emt 0:19:15]} 10. Bxf7+ {[%emt 0:02:08]} Ke7 {[%emt 0:03:06]} 11. Qxd8+ {[%emt 0:07:11]} Kxd8 {[%emt 0:00:07]} 12. Be3 {[%emt 0:02:53]} Nbd7 {[%emt 0:07:47]} 13. O-O-O {[%emt 0:00:16]} Kc7 {[%emt 0:00:27]} 14. Rd3 {[%emt 0:01:39]} Bb4 {[%emt 0:11:08]} 15. Rhd1 {[%emt 0:01:26]} Rhd8 {[%emt 0:10:07]} 16. a3 {[%emt 0:00:30]} Ba5 {[%emt 0:00:20]} 17. b4 {[%emt 0:01:08]} Bb6 {[%emt 0:00:23]} 18. Rc3+ {[%emt 0:00:08]} Kb8 {[%emt 0:02:02]} 19. Bxb6 {[%emt 0:00:15]} Rf8 {[%emt 0:05:21]} 20. Bc7+ {[%emt 0:03:08]} Ka7 {[%emt 0:01:24]} 21. Be6 {[%emt 0:00:10]} Nb6 {[%emt 0:07:17]} 22. Bxe5 {[%emt 0:01:22]} Rfd8 {[%emt 0:04:40]} 23. Bd4 {[%emt 0:02:27]} Ne4 {[%emt 0:16:15]} 24. Rcd3 {[%emt 0:00:25]} 1-0

[Event "Gibraltar Amateurs A 2020"]
[Site "Caleta"]
[Date "2020.01.23"]
[Round "4.16"]
[White "Koreywo, Witold"]
[Black "Mircov, Nicola-Alexandar"]
[Result "0-1"]
[ECO "D00"]
[WhiteElo "1601"]
[BlackElo "1788"]
[Annotator "NA"]
[PlyCount "104"]
[EventDate "2020.01.20"]
[EventType "swiss"]
[EventCountry "GGB"]
[SourceTitle "playchess.com"]
[Source "ChessBase"]
[SourceQuality "1"]
[TimeControl "6600+10"]

1. d4 {[%emt 0:00:00]} c5 {[%emt 0:09:25]} 2. c3 {[%emt 0:00:09]} d5 {[%emt 0:03:22]} 3. Bf4 {[%emt 0:00:49]} Nc6 {[%emt 0:00:33]} 4. e3 {[%emt 0:00:45]} f6 {[%emt 0:02:03]} 5. Nf3 {[%emt 0:01:35]} g5 {[%emt 0:04:11]} 6. Nxg5 {[%emt 0:03:45]} fxg5 {[%emt 0:02:34]} 7. Qh5+ {[%emt 0:00:34]} Kd7 {[%emt 0:00:06]} 8. Bxg5 {[%emt 0:05:20]} Qe8 {[%emt 0:08:24]} 9. Qf3 {[%emt 0:04:38]} e6 {[%emt 0:01:54]} 10. Nd2 {[%emt 0:06:53]} Bd6 {[%emt 0:03:07]} 11. dxc5 {[%emt 0:02:43]} Bxc5 {[%emt 0:00:17]} 12. Nb3 {[%emt 0:01:13]} Bd6 {[%emt 0:00:54]} 13. O-O-O {[%emt 0:01:26]} Nge7 {[%emt 0:01:45]} 14. Bb5 {[%emt 0:11:53]} Rf8 {[%emt 0:01:45]} 15. Qe2 {[%emt 0:06:05]} Qg6 {[%emt 0:02:20]} 16. f4 {[%emt 0:04:10]} Kc7 {[%emt 0:01:05]} 17. Bd3 {[%emt 0:03:54]} Qf7 {[%emt 0:02:15]} 18. e4 {[%emt 0:02:44]} Bxf4+ {[%emt 0:00:55]} 19. Bxf4+ {[%emt 0:00:18]} Qxf4+ {[%emt 0:00:03]} 20. Kb1 {[%emt 0:00:11]} Qf2 {[%emt 0:01:37]} 21. Qh5 {[%emt 0:04:17]} Qf7 {[%emt 0:00:54]} 22. Qh4 {[%emt 0:03:01]} Ng6 {[%emt 0:00:46]} 23. Qg3+ {[%emt 0:01:12]} Qf4 {[%emt 0:00:13]} 24. exd5 {[%emt 0:02:03]} exd5 {[%emt 0:00:22]} 25. Ka1 {[%emt 0:03:34]} Bg4 {[%emt 0:02:21]} 26. Qxf4+ {[%emt 0:04:49]} Nxf4 {[%emt 0:01:00]} 27. Rd2 {[%emt 0:00:45]} Nxd3 {[%emt 0:00:40]} 28. Rxd3 {[%emt 0:00:08]} Rad8 {[%emt 0:00:09]} 29. h3 {[%emt 0:04:21]} Bf5 {[%emt 0:01:21]} 30. Rdd1 {[%emt 0:02:09]} Bc2 {[%emt 0:01:12]} 31. Rd2 {[%emt 0:01:15]} Be4 {[%emt 0:01:59]} 32. Rg1 {[%emt 0:00:33]} Rf7 {[%emt 0:00:29]} 33. Nc5 {[%emt 0:00:27]} Bf5 {[%emt 0:00:21]} 34. g4 {[%emt 0:01:04]} Bc8 {[%emt 0:00:12]} 35. b4 {[%emt 0:03:34]} b6 {[%emt 0:01:13]} 36. Nb3 {[%emt 0:01:05]} Rf3 {[%emt 0:00:24]} 37. h4 {[%emt 0:00:57]} Rxc3 {[%emt 0:01:13]} 38. b5 {[%emt 0:01:53]} Ne5 {[%emt 0:00:49]} 39. Rf2 {[%emt 0:02:25]} Bxg4 {[%emt 0:01:31]} 40. Nd4 {[%emt 0:01:35]} Kd6 {[%emt 0:01:16]} 41. Rf6+ {[%emt 0:02:11]} Kc5 {[%emt 0:01:12]} 42. Nb3+ {[%emt 0:01:02]} Kxb5 {[%emt 0:00:49]} 43. Nd4+ {[%emt 0:01:42]} Ka6 {[%emt 0:02:53]} 44. Nb3 {[%emt 0:00:57]} h5 {[%emt 0:01:31]} 45. Re1 {[%emt 0:01:53]} Nf3 {[%emt 0:01:31]} 46. Re7 {[%emt 0:00:55]} d4 {[%emt 0:00:35]} 47. Rff7 {[%emt 0:01:02]} d3 {[%emt 0:02:15]} 48. Rxa7+ {[%emt 0:00:48]} Kb5 {[%emt 0:03:18]} 49. a4+ {[%emt 0:00:28]} Kb4 {[%emt 0:00:19]} 50. Rfb7 {[%emt 0:01:26]} Kxb3 {[%emt 0:01:04]} 51. Rxb6+ {[%emt 0:00:14]} Ka3 {[%emt 0:00:05]} 52. Rb1 {[%emt 0:01:23]} d2 {[%emt 0:00:15]} 0-1

[Event "Gibraltar Amateurs A 2020"]
[Site "Caleta"]
[Date "2020.01.23"]
[Round "4.17"]
[White "Collins, Andrew"]
[Black "Krause, Marianne"]
[Result "1-0"]
[ECO "B28"]
[WhiteElo "1720"]
[BlackElo "1609"]
[Annotator "NA"]
[PlyCount "121"]
[EventDate "2020.01.20"]
[EventType "swiss"]
[EventCountry "GGB"]
[SourceTitle "playchess.com"]
[Source "ChessBase"]
[SourceQuality "1"]
[TimeControl "6600+10"]

1. e4 {[%emt 0:00:00]} c5 {[%emt 0:00:00]} 2. Nf3 {[%emt 0:00:00]} a6 {[%emt 0:00:00]} 3. d4 {[%emt 0:00:08]} cxd4 {[%emt 0:00:00]} 4. Nxd4 {[%emt 0:00:02]} Nf6 {[%emt 0:00:01]} 5. Nc3 {[%emt 0:00:05]} e5 {[%emt 0:00:07]} 6. Nb3 {[%emt 0:00:53]} Bb4 {[%emt 0:00:09]} 7. Bd3 {[%emt 0:00:21]} Bxc3+ {[%emt 0:01:13]} 8. bxc3 {[%emt 0:00:02]} d6 {[%emt 0:01:36]} 9. O-O {[%emt 0:00:22]} O-O {[%emt 0:04:28]} 10. Bg5 {[%emt 0:01:30]} Nbd7 {[%emt 0:08:09]} 11. c4 {[%emt 0:03:46]} b6 {[%emt 0:03:08]} 12. Qe2 {[%emt 0:00:35]} Bb7 {[%emt 0:00:59]} 13. Nd2 {[%emt 0:00:28]} Nc5 {[%emt 0:02:33]} 14. Rfe1 {[%emt 0:01:39]} h6 {[%emt 0:07:00]} 15. Bxf6 {[%emt 0:01:12]} Qxf6 {[%emt 0:02:06]} 16. Rab1 {[%emt 0:00:02]} Na4 {[%emt 0:01:58]} 17. Qe3 {[%emt 0:00:47]} Qd8 {[%emt 0:01:25]} 18. Rb4 {[%emt 0:01:04]} Nc5 {[%emt 0:01:04]} 19. Reb1 {[%emt 0:00:37]} Nd7 {[%emt 0:01:41]} 20. h3 {[%emt 0:00:55]} Qc7 {[%emt 0:03:06]} 21. Nf1 {[%emt 0:00:13]} Qc6 {[%emt 0:04:26]} 22. f3 {[%emt 0:00:25]} Rfc8 {[%emt 0:02:02]} 23. Ng3 {[%emt 0:00:21]} Re8 {[%emt 0:07:25]} 24. Nf5 {[%emt 0:00:43]} Re6 {[%emt 0:02:31]} 25. a4 {[%emt 0:06:50]} Qc5 {[%emt 0:05:49]} 26. Rxb6 {[%emt 0:02:58]} Qxe3+ {[%emt 0:03:27]} 27. Nxe3 {[%emt 0:00:01]} Nxb6 {[%emt 0:00:11]} 28. Rxb6 {[%emt 0:00:02]} Bc8 {[%emt 0:01:05]} 29. Nf5 {[%emt 0:01:16]} a5 {[%emt 0:07:24]} 30. Nxd6 {[%emt 0:01:45]} Bd7 {[%emt 0:06:02]} 31. c5 {[%emt 0:00:06]} Bxa4 {[%emt 0:07:38]} 32. Bc4 {[%emt 0:00:28]} Re7 {[%emt 0:03:33]} 33. Nf5 {[%emt 0:01:22]} Rc7 {[%emt 0:02:26]} 34. Bd5 {[%emt 0:01:38]} Raa7 {[%emt 0:02:42]} 35. c6 {[%emt 0:02:19]} Bxc2 {[%emt 0:01:23]} 36. Nd6 {[%emt 0:00:01]} Bd3 {[%emt 0:03:14]} 37. Rb8+ {[%emt 0:05:40]} Kh7 {[%emt 0:00:10]} 38. Ne8 {[%emt 0:02:18]} Re7 {[%emt 0:03:04]} 39. Nd6 {[%emt 0:06:51]} Rec7 {[%emt 0:00:39]} 40. Rf8 {[%emt 0:00:45]} f6 {[%emt 0:00:57]} 41. h4 {[%emt 0:04:36]} Kg6 {[%emt 0:02:54]} 42. Kh2 {[%emt 0:01:25]} h5 {[%emt 0:01:04]} 43. Be6 {[%emt 0:00:30]} Kh7 {[%emt 0:01:49]} 44. Nf7 {[%emt 0:05:47]} g6 {[%emt 0:01:54]} 45. Nd8 {[%emt 0:03:58]} Rg7 {[%emt 0:01:07]} 46. Rxf6 {[%emt 0:01:06]} a4 {[%emt 0:00:16]} 47. Ba2 {[%emt 0:01:22]} a3 {[%emt 0:00:17]} 48. Ne6 {[%emt 0:00:25]} Rgc7 {[%emt 0:00:15]} 49. Nxc7 {[%emt 0:03:57]} Rxc7 {[%emt 0:00:01]} 50. Rf7+ {[%emt 0:02:19]} Rxf7 {[%emt 0:00:18]} 51. Bxf7 {[%emt 0:00:02]} Ba6 {[%emt 0:00:06]} 52. Be6 {[%emt 0:00:23]} Kg7 {[%emt 0:00:02]} 53. Kg3 {[%emt 0:01:01]} Kf8 {[%emt 0:00:05]} 54. f4 {[%emt 0:00:07]} exf4+ {[%emt 0:00:09]} 55. Kxf4 {[%emt 0:00:10]} Ke7 {[%emt 0:00:01]} 56. Ke5 {[%emt 0:00:59]} Kd8 {[%emt 0:00:27]} 57. Kd6 {[%emt 0:00:46]} Bc8 {[%emt 0:00:17]} 58. Ba2 {[%emt 0:00:01]} Ba6 {[%emt 0:01:13]} 59. e5 {[%emt 0:00:17]} Ke8 {[%emt 0:00:19]} 60. e6 {[%emt 0:00:25]} Bc8 {[%emt 0:00:11]} 61. Bb1 {[%emt 0:00:19]} 1-0

[Event "Gibraltar Amateurs A 2020"]
[Site "Caleta"]
[Date "2020.01.23"]
[Round "4.18"]
[White "Guardia Bencomo, Tomas"]
[Black "O Muireagain, Colm"]
[Result "0-1"]
[ECO "B23"]
[WhiteElo "1660"]
[BlackElo "1376"]
[Annotator "NA"]
[PlyCount "112"]
[EventDate "2020.01.20"]
[EventType "swiss"]
[EventCountry "GGB"]
[SourceTitle "playchess.com"]
[Source "ChessBase"]
[SourceQuality "1"]
[TimeControl "6600+10"]

1. e4 {[%emt 0:00:00]} c5 {[%emt 0:00:00]} 2. Nc3 {[%emt 0:00:06]} Nc6 {[%emt 0:00:03]} 3. Bb5 {[%emt 0:00:29]} Nd4 {[%emt 0:00:35]} 4. Bc4 {[%emt 0:00:20]} Nf6 {[%emt 0:00:56]} 5. Nge2 {[%emt 0:01:43]} e6 {[%emt 0:01:00]} 6. O-O {[%emt 0:01:29]} a6 {[%emt 0:00:14]} 7. a4 {[%emt 0:00:11]} d5 {[%emt 0:02:20]} 8. exd5 {[%emt 0:01:09]} exd5 {[%emt 0:00:07]} 9. Ba2 {[%emt 0:00:34]} Nxe2+ {[%emt 0:02:59]} 10. Qxe2+ {[%emt 0:04:07]} Be7 {[%emt 0:02:34]} 11. Re1 {[%emt 0:00:16]} Be6 {[%emt 0:02:03]} 12. d3 {[%emt 0:01:21]} O-O {[%emt 0:01:49]} 13. Bg5 {[%emt 0:00:39]} Re8 {[%emt 0:04:03]} 14. a5 {[%emt 0:05:30]} Qd7 {[%emt 0:02:17]} 15. Bb3 {[%emt 0:00:41]} Qd6 {[%emt 0:10:49]} 16. Bh4 {[%emt 0:04:16]} b5 {[%emt 0:12:22]} 17. axb6 {[%emt 0:01:03]} Kf8 {[%emt 0:02:44]} 18. b7 {[%emt 0:05:49]} Rad8 {[%emt 0:04:53]} 19. Bg3 {[%emt 0:00:23]} Qb6 {[%emt 0:02:18]} 20. b8=Q {[%emt 0:01:22]} Rxb8 {[%emt 0:00:09]} 21. Bxb8 {[%emt 0:00:09]} Qxb8 {[%emt 0:01:50]} 22. Rxa6 {[%emt 0:04:04]} Bd6 {[%emt 0:02:47]} 23. g3 {[%emt 0:22:10]} Bc8 {[%emt 0:03:17]} 24. Qxe8+ {[%emt 0:03:51]} Nxe8 {[%emt 0:00:53]} 25. Ra5 {[%emt 0:01:24]} c4 {[%emt 0:08:30]} 26. Ba4 {[%emt 0:00:58]} Be6 {[%emt 0:06:01]} 27. Nxd5 {[%emt 0:04:05]} Bb4 {[%emt 0:02:11]} 28. Rb5 {[%emt 0:01:57]} Qxb5 {[%emt 0:00:24]} 29. Bxb5 {[%emt 0:00:12]} Bxe1 {[%emt 0:00:12]} 30. dxc4 {[%emt 0:00:29]} Nd6 {[%emt 0:03:11]} 31. Nc7 {[%emt 0:01:57]} Bxc4 {[%emt 0:01:56]} 32. Bxc4 {[%emt 0:00:46]} Nxc4 {[%emt 0:00:04]} 33. b3 {[%emt 0:00:20]} Na3 {[%emt 0:01:20]} 34. c4 {[%emt 0:00:40]} Nc2 {[%emt 0:02:02]} 35. Kf1 {[%emt 0:01:00]} Ba5 {[%emt 0:00:51]} 36. Nd5 {[%emt 0:00:20]} Ke8 {[%emt 0:01:16]} 37. Kg2 {[%emt 0:00:37]} Kd7 {[%emt 0:01:07]} 38. f3 {[%emt 0:00:09]} Kc6 {[%emt 0:01:02]} 39. Kh3 {[%emt 0:02:39]} Kc5 {[%emt 0:00:36]} 40. Kg4 {[%emt 0:00:51]} Nd4 {[%emt 0:00:36]} 41. h4 {[%emt 0:00:16]} Nxb3 {[%emt 0:00:14]} 42. Ne3 {[%emt 0:00:15]} Nd2 {[%emt 0:02:18]} 43. h5 {[%emt 0:01:05]} Nxc4 {[%emt 0:00:19]} 44. Nf5 {[%emt 0:00:41]} Bc3 {[%emt 0:00:51]} 45. h6 {[%emt 0:01:01]} g6 {[%emt 0:01:07]} 46. Nh4 {[%emt 0:05:10]} Kd5 {[%emt 0:01:33]} 47. f4 {[%emt 0:00:13]} f5+ {[%emt 0:02:17]} 48. Kh3 {[%emt 0:02:37]} Ne3 {[%emt 0:01:31]} 49. Nf3 {[%emt 0:00:24]} Bf6 {[%emt 0:00:16]} 50. Nh2 {[%emt 0:03:06]} Ke4 {[%emt 0:01:01]} 51. g4 {[%emt 0:00:37]} Nxg4 {[%emt 0:00:16]} 52. Nxg4 {[%emt 0:00:06]} fxg4+ {[%emt 0:00:09]} 53. Kxg4 {[%emt 0:00:08]} Be7 {[%emt 0:00:45]} 54. f5 {[%emt 0:00:16]} gxf5+ {[%emt 0:00:17]} 55. Kh5 {[%emt 0:00:05]} Bf8 {[%emt 0:00:13]} 56. Kg5 {[%emt 0:00:06]} Bxh6+ {[%emt 0:00:17]} 0-1

[Event "Gibraltar Amateurs A 2020"]
[Site "Caleta"]
[Date "2020.01.24"]
[Round "5.1"]
[White "Dragic, Dragan"]
[Black "Ashwani Kumar Grover"]
[Result "0-1"]
[ECO "D31"]
[WhiteElo "1781"]
[BlackElo "1731"]
[Annotator "NA RC"]
[PlyCount "152"]
[EventDate "2020.01.20"]
[EventType "swiss"]
[EventCountry "GGB"]
[SourceTitle "playchess.com"]
[Source "ChessBase"]
[SourceQuality "1"]
[TimeControl "6600+10"]

1. d4 {[%emt 0:00:35]} d5 {[%emt 0:04:37]} 2. c4 {[%emt 0:00:06]} e6 {[%emt 0:00:22]} 3. Nc3 {[%emt 0:00:14]} c6 {[%emt 0:00:09]} 4. Nf3 {[%emt 0:02:32]} dxc4 {[%emt 0:01:27]} 5. e3 {[%emt 0:01:46]} b5 {[%emt 0:00:07]} 6. Ne5 {[%emt 0:00:46]} Nf6 {[%emt 0:18:45]} 7. a4 {[%emt 0:05:49]} Bb4 {[%emt 0:06:36]} 8. Qf3 {[%emt 0:02:36]} Qd5 {[%emt 0:09:53]} 9. Be2 {[%emt 0:00:23]} Qxf3 {[%emt 0:05:03]} 10. Bxf3 {[%emt 0:01:09]} Nd5 {[%emt 0:04:02]} 11. Bd2 {[%emt 0:07:48]} f6 {[%emt 0:06:21]} 12. Bxd5 {[%emt 0:13:54]} exd5 {[%emt 0:00:48]} 13. Nf3 {[%emt 0:08:38]} a6 {[%emt 0:05:22]} 14. O-O {[%emt 0:02:22]} Bxc3 {[%emt 0:06:15]} 15. Bxc3 {[%emt 0:00:57]} Kf7 {[%emt 0:01:15]} 16. Nd2 {[%emt 0:01:53]} Re8 {[%emt 0:04:43]} 17. Rfc1 {[%emt 0:02:59]} Nd7 {[%emt 0:03:19]} 18. axb5 {[%emt 0:06:15]} cxb5 {[%emt 0:00:21]} 19. Ba5 {[%emt 0:02:40]} Nb8 {[%emt 0:04:07]} 20. Nb1 {[%emt 0:15:29]} Nc6 {[%emt 0:00:51]} 21. b4 {[%emt 0:08:56]} Re6 {[%emt 0:02:32]} 22. Nc3 {[%emt 0:00:39]} Bb7 {[%emt 0:00:10]} 23. Rcb1 {[%emt 0:01:22]} Rc8 {[%emt 0:02:05]} 24. h4 {[%emt 0:02:22]} h5 {[%emt 0:00:53]} 25. Kf1 {[%emt 0:00:55]} Ne7 {[%emt 0:02:15]} 26. Ne2 {[%emt 0:00:39]} Nf5 {[%emt 0:06:25]} 27. Nf4 {[%emt 0:01:51]} Re4 {[%emt 0:00:54]} 28. g3 {[%emt 0:02:03]} g6 {[%emt 0:00:09]} 29. Bb6 {[%emt 0:00:27]} Ng7 {[%emt 0:01:33]} 30. Ra3 {[%emt 0:00:49]} Rce8 {[%emt 0:01:05]} 31. Re1 {[%emt 0:00:53]} R4e7 {[%emt 0:01:43]} 32. Bc5 {[%emt 0:03:28]} Rd7 {[%emt 0:00:22]} 33. f3 {[%emt 0:01:05]} Ne6 {[%emt 0:00:24]} 34. Ne2 {[%emt 0:01:22]} g5 {[%emt 0:01:24]} 35. Kf2 {[%emt 0:00:22]} Rdd8 {[%emt 0:00:11]} 36. hxg5 {[%emt 0:00:50]} Nxg5 {[%emt 0:00:03]} 37. Nf4 {[%emt 0:00:27]} Rh8 {[%emt 0:03:13]} 38. Rh1 {[%emt 0:00:17]} Ne6 {[%emt 0:00:04]} 39. Nxh5 {[%emt 0:01:39]} Ng7 {[%emt 0:00:39]} 40. g4 {[%emt 0:00:27]} Rh7 {[%emt 0:00:37]} 41. Ng3 {[%emt 0:00:13]} Rxh1 {[%emt 0:00:27]} 42. Nxh1 {[%emt 0:00:02]} Rh8 {[%emt 0:00:27]} 43. Kg2 {[%emt 0:00:01]} Bc8 {[%emt 0:01:06]} 44. Ng3 {[%emt 0:00:59]} Kg6 {[%emt 0:00:15]} 45. Ne2 {[%emt 0:00:09]} Ne6 {[%emt 0:00:36]} 46. Bd6 {[%emt 0:00:35]} Rd8 {[%emt 0:00:19]} 47. Bg3 {[%emt 0:00:38]} f5 {[%emt 0:00:19]} 48. gxf5+ {[%emt 0:00:52]} Kxf5 {[%emt 0:00:02]} 49. Be5 {[%emt 0:00:13]} Rg8+ {[%emt 0:00:29]} 50. Ng3+ {[%emt 0:00:07]} Kg6 {[%emt 0:00:04]} 51. Ra1 {[%emt 0:00:20]} Ng7 {[%emt 0:01:02]} 52. e4 {[%emt 0:00:30]} dxe4 {[%emt 0:00:19]} 53. Nxe4 {[%emt 0:00:32]} Nf5 {[%emt 0:01:00]} 54. Kf2 {[%emt 0:00:27]} Rd8 {[%emt 0:00:29]} 55. Rg1+ {[%emt 0:00:08]} Kf7 {[%emt 0:00:08]} 56. Ng5+ {[%emt 0:01:37]} Ke7 {[%emt 0:00:05]} 57. Rh1 {[%emt 0:00:27]} Kd7 {[%emt 0:00:50]} 58. d5 {[%emt 0:00:39]} Re8 {[%emt 0:00:03]} 59. f4 {[%emt 0:00:12]} Bb7 {[%emt 0:00:17]} 60. Rd1 {[%emt 0:00:47]} Nd6 {[%emt 0:00:06]} 61. Ne6 {[%emt 0:00:12]} Ne4+ {[%emt 0:00:12]} 62. Kf3 {[%emt 0:00:12]} Nd6 {[%emt 0:00:22]} 63. Nc5+ {[%emt 0:00:03]} Ke7 {[%emt 0:00:09]} 64. Bxd6+ {[%emt 0:00:02]} Kxd6 {[%emt 0:00:04]} 65. Nxb7+ {[%emt 0:00:01]} Kc7 {[%emt 0:00:03]} 66. Nc5 {[%emt 0:00:05]} a5 {[%emt 0:00:06]} 67. d6+ {[%emt 0:00:05]} Kc6 {[%emt 0:00:15]} 68. d7 {[%emt 0:00:02]} Rd8 {[%emt 0:00:07]} 69. f5 {[%emt 0:01:16]} axb4 {[%emt 0:00:01]} 70. Ne6 {[%emt 0:00:15]} Rxd7 {[%emt 0:00:01]} 71. Rxd7 {[%emt 0:00:12]} Kxd7 {[%emt 0:00:00]} 72. Ke4 {[%emt 0:00:01]} c3 {[%emt 0:00:10]} 73. Kd4 {[%emt 0:00:01]} Ke7 {[%emt 0:00:01]} 74. Ke5 {[%emt 0:00:08]} c2 {[%emt 0:00:06]} 75. f6+ {[%emt 0:00:02]} Ke8 {[%emt 0:00:25]} 76. Ng5 {[%emt 0:00:18]} c1=Q {[%emt 0:00:02]} 0-1